[Event "*** Titled Tuesday Blitz"]
[Site "Chess.com"]
[Date "2020.04.28"]
[Round "9"]
[White "DenishevM"]
[Black "MRBigtimer"]
[Result "0-1"]
[WhiteElo "2552"]
[BlackElo "2354"]
[TimeControl "180+1"]
[EndTime "11:46:49 PDT"]
[Termination "MRBigtimer won by resignation"]

1. Nf3 {[%clk 0:03:00.9]} 1... c5 {[%clk 0:02:58.6]} 2. b3 {[%clk 0:03:01.4]}
2... Nc6 {[%clk 0:02:57.4]} 3. Bb2 {[%clk 0:03:02.3]} 3... d6 {[%clk 0:02:55.8]}
4. e3 {[%clk 0:03:01.1]} 4... Nf6 {[%clk 0:02:54.1]} 5. d4 {[%clk 0:03:02]} 5...
cxd4 {[%clk 0:02:53.5]} 6. Nxd4 {[%clk 0:03:01.4]} 6... Nxd4 {[%clk 0:02:53.5]}
7. Bxd4 {[%clk 0:03:02.3]} 7... e5 {[%clk 0:02:48.2]} 8. Bb2 {[%clk 0:03:01.9]}
8... Be7 {[%clk 0:02:49.1]} 9. Be2 {[%clk 0:03:01.1]} 9... O-O {[%clk
0:02:47.2]} 10. O-O {[%clk 0:03:01.3]} 10... Be6 {[%clk 0:02:46.6]} 11. c4
{[%clk 0:03:01.3]} 11... Rc8 {[%clk 0:02:31.7]} 12. Nc3 {[%clk 0:02:54.1]} 12...
a6 {[%clk 0:02:26.2]} 13. Bf3 {[%clk 0:02:47.1]} 13... Qc7 {[%clk 0:02:24.7]}
14. Rc1 {[%clk 0:02:41.5]} 14... Rfd8 {[%clk 0:02:24]} 15. Nd5 {[%clk
0:02:34.8]} 15... Bxd5 {[%clk 0:02:23.5]} 16. Bxd5 {[%clk 0:02:35.7]} 16... Nxd5
{[%clk 0:02:21.5]} 17. Qxd5 {[%clk 0:02:36.6]} 17... Qc6 {[%clk 0:02:20.8]} 18.
Rfd1 {[%clk 0:02:30.7]} 18... Qd7 {[%clk 0:01:42]} 19. Bxe5 {[%clk 0:02:20.8]}
19... b5 {[%clk 0:01:33.1]} 20. c5 {[%clk 0:02:14]} 20... Qf5 {[%clk 0:01:19.9]}
21. Bg3 {[%clk 0:01:41.4]} 21... Qxd5 {[%clk 0:01:17.6]} 22. Rxd5 {[%clk
0:01:41.9]} 22... dxc5 {[%clk 0:01:18.2]} 23. e4 {[%clk 0:01:23.5]} 23... Rxd5
{[%clk 0:01:13.5]} 24. exd5 {[%clk 0:01:24.4]} 24... Rd8 {[%clk 0:01:13.6]} 25.
Rd1 {[%clk 0:01:23.9]} 25... Bd6 {[%clk 0:01:12.3]} 26. Kf1 {[%clk 0:01:20.7]}
26... f5 {[%clk 0:01:09.9]} 27. Bxd6 {[%clk 0:01:18.1]} 27... Rxd6 {[%clk
0:01:09.7]} 28. f4 {[%clk 0:01:19]} 28... Kf7 {[%clk 0:01:07]} 29. Ke2 {[%clk
0:01:18.3]} 29... Ke7 {[%clk 0:01:06.2]} 30. Ke3 {[%clk 0:01:18.8]} 30... Rg6
{[%clk 0:01:04.5]} 31. g3 {[%clk 0:01:18.6]} 31... Kd6 {[%clk 0:01:04.1]} 32. a3
{[%clk 0:01:12.8]} 32... Rh6 {[%clk 0:01:03.6]} 33. Rd2 {[%clk 0:01:10.8]} 33...
Rf6 {[%clk 0:01:02.8]} 34. a4 {[%clk 0:01:09.5]} 34... Rf8 {[%clk 0:01:01.6]}
35. Ke2 {[%clk 0:00:57.4]} 35... Re8+ {[%clk 0:01:00.8]} 36. Kd1 {[%clk
0:00:56.8]} 36... Re4 {[%clk 0:01:00.4]} 37. axb5 {[%clk 0:00:53.9]} 37... axb5
{[%clk 0:01:00.5]} 38. Kc2 {[%clk 0:00:51.3]} 38... Rd4 {[%clk 0:01:00.1]} 39.
Re2 {[%clk 0:00:29.5]} 39... Rxd5 {[%clk 0:00:58.6]} 40. Re8 {[%clk 0:00:28.1]}
40... Kc6 {[%clk 0:00:58]} 41. Re7 {[%clk 0:00:26.7]} 41... Rd7 {[%clk
0:00:56.8]} 42. Re5 {[%clk 0:00:26.9]} 42... g6 {[%clk 0:00:56.9]} 43. Re6+
{[%clk 0:00:27.4]} 43... Kd5 {[%clk 0:00:52.7]} 44. Re5+ {[%clk 0:00:25.1]}
44... Kd4 {[%clk 0:00:51]} 45. h4 {[%clk 0:00:24.5]} 45... Ra7 {[%clk
0:00:46.2]} 46. Kb2 {[%clk 0:00:23]} 46... c4 {[%clk 0:00:37.3]} 47. Rxb5 {[%clk
0:00:22.2]} 47... c3+ {[%clk 0:00:37.2]} 48. Kc1 {[%clk 0:00:21.3]} 48... Re7
{[%clk 0:00:36.7]} 49. Rb8 {[%clk 0:00:18.2]} 49... Re1+ {[%clk 0:00:35.3]} 50.
Kc2 {[%clk 0:00:18.1]} 50... Re2+ {[%clk 0:00:35.3]} 51. Kc1 {[%clk 0:00:18.6]}
51... Rg2 {[%clk 0:00:35.7]} 52. b4 {[%clk 0:00:15.3]} 52... Rxg3 {[%clk
0:00:30.4]} 53. b5 {[%clk 0:00:15.8]} 53... Rg1+ {[%clk 0:00:30.7]} 54. Kc2
{[%clk 0:00:15.5]} 54... Rg2+ {[%clk 0:00:30.9]} 55. Kc1 {[%clk 0:00:16.1]}
55... Rb2 {[%clk 0:00:30.8]} 56. b6 {[%clk 0:00:16.2]} 56... Ke4 {[%clk
0:00:31]} 57. b7 {[%clk 0:00:10.2]} 57... Kxf4 {[%clk 0:00:30.8]} 0-1

[Event "*** Titled Tuesday Blitz"]
[Site "Chess.com"]
[Date "2020.04.28"]
[Round "9"]
[White "Gubajdullin"]
[Black "djamir"]
[Result "0-1"]
[WhiteElo "2490"]
[BlackElo "2715"]
[TimeControl "180+1"]
[EndTime "11:46:49 PDT"]
[Termination "djamir won on time"]

1. d4 {[%clk 0:02:57.7]} 1... Nf6 {[%clk 0:02:59.1]} 2. Bf4 {[%clk 0:02:57.9]}
2... e6 {[%clk 0:02:58.5]} 3. e3 {[%clk 0:02:58.3]} 3... b6 {[%clk 0:02:56.2]}
4. Nf3 {[%clk 0:02:58.1]} 4... Nh5 {[%clk 0:02:54.9]} 5. Bg5 {[%clk 0:02:56.5]}
5... Be7 {[%clk 0:02:55.1]} 6. Bxe7 {[%clk 0:02:47.7]} 6... Qxe7 {[%clk
0:02:56]} 7. Bd3 {[%clk 0:02:47.5]} 7... Bb7 {[%clk 0:02:55.7]} 8. O-O {[%clk
0:02:47.2]} 8... d6 {[%clk 0:02:55.6]} 9. Nbd2 {[%clk 0:02:43.3]} 9... Nd7
{[%clk 0:02:55]} 10. c4 {[%clk 0:02:43.2]} 10... O-O {[%clk 0:02:42.6]} 11. Be4
{[%clk 0:02:39.5]} 11... Bxe4 {[%clk 0:02:37.3]} 12. Nxe4 {[%clk 0:02:38.7]}
12... f5 {[%clk 0:02:36.2]} 13. Nc3 {[%clk 0:02:37.3]} 13... a6 {[%clk
0:02:29.5]} 14. b4 {[%clk 0:02:30.3]} 14... Nhf6 {[%clk 0:02:18.6]} 15. c5
{[%clk 0:02:21.3]} 15... bxc5 {[%clk 0:02:14.5]} 16. dxc5 {[%clk 0:02:20.7]}
16... dxc5 {[%clk 0:02:14.6]} 17. b5 {[%clk 0:02:20.7]} 17... a5 {[%clk
0:02:04.9]} 18. Na4 {[%clk 0:02:10.5]} 18... Rab8 {[%clk 0:02:00.9]} 19. Rb1
{[%clk 0:02:07.9]} 19... Nd5 {[%clk 0:01:25.2]} 20. Qc2 {[%clk 0:01:41]} 20...
Nb4 {[%clk 0:01:20.3]} 21. Qc4 {[%clk 0:01:27.7]} 21... Rfe8 {[%clk 0:00:59.3]}
22. a3 {[%clk 0:01:26.4]} 22... Nd5 {[%clk 0:00:58.6]} 23. Qc2 {[%clk 0:01:19]}
23... Rb7 {[%clk 0:00:44.9]} 24. Rfc1 {[%clk 0:01:14.4]} 24... Reb8 {[%clk
0:00:44.9]} 25. Qe2 {[%clk 0:00:58.6]} 25... h6 {[%clk 0:00:38.3]} 26. Nd2
{[%clk 0:00:56.9]} 26... N5b6 {[%clk 0:00:36]} 27. Nc3 {[%clk 0:00:55.4]} 27...
a4 {[%clk 0:00:34.7]} 28. Nc4 {[%clk 0:00:51]} 28... Nxc4 {[%clk 0:00:35]} 29.
Qxc4 {[%clk 0:00:50.3]} 29... Nb6 {[%clk 0:00:35.9]} 30. Qf4 {[%clk 0:00:47.7]}
30... Rd8 {[%clk 0:00:34]} 31. Rd1 {[%clk 0:00:31.6]} 31... Rbb8 {[%clk
0:00:28.3]} 32. Rdc1 {[%clk 0:00:16.8]} 32... c4 {[%clk 0:00:28.5]} 33. Qf3
{[%clk 0:00:15.5]} 33... Qxa3 {[%clk 0:00:26.3]} 34. Qc6 {[%clk 0:00:14]} 34...
Qd6 {[%clk 0:00:25.7]} 35. Qf3 {[%clk 0:00:13.3]} 35... Ra8 {[%clk 0:00:25.7]}
36. Ra1 {[%clk 0:00:13.1]} 36... a3 {[%clk 0:00:26]} 37. h4 {[%clk 0:00:11.6]}
37... Nd5 {[%clk 0:00:24.9]} 38. Ne2 {[%clk 0:00:11]} 38... Qb4 {[%clk
0:00:22.5]} 39. e4 {[%clk 0:00:10.3]} 39... fxe4 {[%clk 0:00:22.6]} 40. Qxe4
{[%clk 0:00:10]} 40... Qxb5 {[%clk 0:00:17.6]} 41. Qxe6+ {[%clk 0:00:09.4]}
41... Kh8 {[%clk 0:00:18.1]} 42. Nd4 {[%clk 0:00:09.2]} 42... Qb6 {[%clk
0:00:17.2]} 43. Qg4 {[%clk 0:00:08.3]} 43... Nf6 {[%clk 0:00:14.2]} 44. Qg6
{[%clk 0:00:05.7]} 44... Qxd4 {[%clk 0:00:13.7]} 45. Ra2 {[%clk 0:00:02.5]}
45... Qd3 {[%clk 0:00:13.8]} 0-1

[Event "*** Titled Tuesday Blitz"]
[Site "Chess.com"]
[Date "2020.04.28"]
[Round "9"]
[White "Aikiigm"]
[Black "mattcolins2025"]
[Result "1-0"]
[WhiteElo "2495"]
[BlackElo "2287"]
[TimeControl "180+1"]
[EndTime "11:46:51 PDT"]
[Termination "Aikiigm won by checkmate"]

1. d4 {[%clk 0:01:05.4]} 1... Nf6 {[%clk 0:02:58.2]} 2. Nf3 {[%clk 0:01:05.7]}
2... g6 {[%clk 0:02:58.2]} 3. g3 {[%clk 0:01:06.6]} 3... Bg7 {[%clk 0:02:58.4]}
4. Bg2 {[%clk 0:01:07.5]} 4... O-O {[%clk 0:02:58.6]} 5. Bg5 {[%clk 0:01:08.3]}
5... h6 {[%clk 0:02:57.4]} 6. Bf4 {[%clk 0:01:07.1]} 6... c5 {[%clk 0:02:56.9]}
7. Nc3 {[%clk 0:01:07.7]} 7... Qb6 {[%clk 0:02:54.3]} 8. dxc5 {[%clk 0:01:06.9]}
8... Qxb2 {[%clk 0:02:51.1]} 9. Na4 {[%clk 0:01:06.1]} 9... Qa3 {[%clk
0:02:49.4]} 10. c3 {[%clk 0:01:05.6]} 10... Ne4 {[%clk 0:02:46.9]} 11. Be5
{[%clk 0:01:05.7]} 11... Nxc3 {[%clk 0:02:42.3]} 12. Qb3 {[%clk 0:00:59.6]}
12... Qxa4 {[%clk 0:02:32.9]} 13. Qxc3 {[%clk 0:00:57.7]} 13... Bxe5 {[%clk
0:02:32.6]} 14. Nxe5 {[%clk 0:00:58.3]} 14... Nc6 {[%clk 0:02:30.7]} 15. Nd3
{[%clk 0:00:57.9]} 15... Qd4 {[%clk 0:02:26.4]} 16. Qc1 {[%clk 0:00:56.8]} 16...
e5 {[%clk 0:02:17.3]} 17. O-O {[%clk 0:00:56.5]} 17... Kg7 {[%clk 0:02:13.8]}
18. Rd1 {[%clk 0:00:55.9]} 18... e4 {[%clk 0:02:07.9]} 19. Nf4 {[%clk
0:00:55.4]} 19... Qe5 {[%clk 0:02:06.3]} 20. Rd5 {[%clk 0:00:54.2]} 20... Qe7
{[%clk 0:02:04.9]} 21. Qb2+ {[%clk 0:00:52.8]} 21... Kh7 {[%clk 0:02:01.7]} 22.
Rad1 {[%clk 0:00:51.8]} 22... b6 {[%clk 0:01:47.1]} 23. h4 {[%clk 0:00:48.4]}
23... bxc5 {[%clk 0:01:44.2]} 24. h5 {[%clk 0:00:48.6]} 24... Rb8 {[%clk
0:01:40.9]} 25. Qc2 {[%clk 0:00:46.2]} 25... Nd4 {[%clk 0:01:31.8]} 26. hxg6+
{[%clk 0:00:45.5]} 26... fxg6 {[%clk 0:01:30.6]} 27. Qxe4 {[%clk 0:00:43.9]}
27... Qxe4 {[%clk 0:01:27.5]} 28. Bxe4 {[%clk 0:00:44.8]} 28... Rxf4 {[%clk
0:01:16.4]} 29. gxf4 {[%clk 0:00:39.2]} 29... Nxe2+ {[%clk 0:01:16.6]} 30. Kh2
{[%clk 0:00:34.8]} 30... Nc3 {[%clk 0:01:14.5]} 31. Rxd7+ {[%clk 0:00:33.9]}
31... Bxd7 {[%clk 0:01:14.9]} 32. Rxd7+ {[%clk 0:00:34.2]} 32... Kg8 {[%clk
0:01:15]} 33. Bxg6 {[%clk 0:00:34.9]} 33... Rb2 {[%clk 0:01:08.7]} 34. Kg2
{[%clk 0:00:20.5]} 34... Kf8 {[%clk 0:01:06]} 35. Rxa7 {[%clk 0:00:19.3]} 35...
Rxa2 {[%clk 0:01:06.1]} 36. Rc7 {[%clk 0:00:17.7]} 36... Ra5 {[%clk 0:01:05.1]}
37. f5 {[%clk 0:00:17]} 37... Nd5 {[%clk 0:01:02.5]} 38. Rd7 {[%clk 0:00:15.6]}
38... Ne7 {[%clk 0:00:54.1]} 39. Bh5 {[%clk 0:00:09.3]} 39... c4 {[%clk
0:00:47.3]} 40. f6 {[%clk 0:00:09.4]} 40... Rg5+ {[%clk 0:00:41.5]} 41. Kf1
{[%clk 0:00:08.7]} 41... Rxh5 {[%clk 0:00:37.1]} 42. fxe7+ {[%clk 0:00:09]}
42... Ke8 {[%clk 0:00:37.4]} 43. Rc7 {[%clk 0:00:09.4]} 43... Rh4 {[%clk
0:00:37.9]} 44. Ke2 {[%clk 0:00:09]} 44... h5 {[%clk 0:00:35.1]} 45. Ke3 {[%clk
0:00:08.9]} 45... Rg4 {[%clk 0:00:34.5]} 46. f3 {[%clk 0:00:08.8]} 46... Rh4
{[%clk 0:00:33.4]} 47. f4 {[%clk 0:00:08.7]} 47... Rg4 {[%clk 0:00:33.5]} 48. f5
{[%clk 0:00:08.1]} 48... h4 {[%clk 0:00:31.3]} 49. f6 {[%clk 0:00:08.2]} 49...
Kf7 {[%clk 0:00:24.1]} 50. Rc8 {[%clk 0:00:08.1]} 50... Rg3+ {[%clk 0:00:23.6]}
51. Kf2 {[%clk 0:00:07.2]} 51... Kxf6 {[%clk 0:00:20.2]} 52. e8=Q {[%clk
0:00:06.5]} 52... Rg5 {[%clk 0:00:19.9]} 53. Qf8+ {[%clk 0:00:06.5]} 53... Kg6
{[%clk 0:00:20.4]} 54. Rc6+ {[%clk 0:00:06.4]} 54... Kh5 {[%clk 0:00:21]} 55.
Qh6+ {[%clk 0:00:06.7]} 55... Kg4 {[%clk 0:00:21.6]} 56. Rxc4+ {[%clk 0:00:07]}
56... Kh3 {[%clk 0:00:22.3]} 57. Qxh4# {[%clk 0:00:06.9]} 1-0

[Event "*** Titled Tuesday Blitz"]
[Site "Chess.com"]
[Date "2020.04.28"]
[Round "9"]
[White "GameOverBro"]
[Black "erlesfar"]
[Result "0-1"]
[WhiteElo "2487"]
[BlackElo "2378"]
[TimeControl "180+1"]
[EndTime "11:46:52 PDT"]
[Termination "erlesfar won by resignation"]

1. e4 {[%clk 0:03:00.9]} 1... d5 {[%clk 0:02:59]} 2. exd5 {[%clk 0:03:00.5]}
2... Qxd5 {[%clk 0:02:57.8]} 3. Nc3 {[%clk 0:03:00.7]} 3... Qa5 {[%clk
0:02:57.3]} 4. d4 {[%clk 0:03:00.8]} 4... Nf6 {[%clk 0:02:55.9]} 5. Nf3 {[%clk
0:03:01.2]} 5... c6 {[%clk 0:02:54.9]} 6. Ne5 {[%clk 0:03:00.3]} 6... Bf5 {[%clk
0:02:50.9]} 7. Nc4 {[%clk 0:02:59.7]} 7... Qd8 {[%clk 0:02:46.2]} 8. Bf4 {[%clk
0:02:48.4]} 8... e6 {[%clk 0:02:36.3]} 9. Be2 {[%clk 0:02:31.6]} 9... Be7 {[%clk
0:02:35]} 10. O-O {[%clk 0:02:31.1]} 10... O-O {[%clk 0:02:34.9]} 11. a4 {[%clk
0:02:30.8]} 11... Nd5 {[%clk 0:02:31.7]} 12. Bd2 {[%clk 0:02:22.1]} 12... Nd7
{[%clk 0:02:29.8]} 13. Ne3 {[%clk 0:02:17.1]} 13... Bg6 {[%clk 0:02:25.8]} 14.
Bf3 {[%clk 0:02:04.8]} 14... Bf6 {[%clk 0:02:22.5]} 15. Ncxd5 {[%clk 0:01:57.5]}
15... exd5 {[%clk 0:02:20.2]} 16. c3 {[%clk 0:01:55.1]} 16... Re8 {[%clk
0:02:17.8]} 17. Ng4 {[%clk 0:01:54.7]} 17... Bg5 {[%clk 0:02:16.4]} 18. Re1
{[%clk 0:01:51.4]} 18... Rxe1+ {[%clk 0:02:13.3]} 19. Qxe1 {[%clk 0:01:49.5]}
19... Bxd2 {[%clk 0:02:02]} 20. Qxd2 {[%clk 0:01:49.7]} 20... Nf6 {[%clk
0:02:00.4]} 21. Ne5 {[%clk 0:01:48.7]} 21... Be4 {[%clk 0:01:57.8]} 22. Re1
{[%clk 0:01:42]} 22... Qd6 {[%clk 0:01:49.7]} 23. Qf4 {[%clk 0:01:38.2]} 23...
Bxf3 {[%clk 0:01:41.2]} 24. Qxf3 {[%clk 0:01:36.9]} 24... Re8 {[%clk 0:01:40.7]}
25. Kf1 {[%clk 0:01:33.2]} 25... Re6 {[%clk 0:01:40]} 26. g4 {[%clk 0:01:30.9]}
26... h6 {[%clk 0:01:38.7]} 27. h4 {[%clk 0:01:30.8]} 27... Qe7 {[%clk
0:01:36.8]} 28. Re3 {[%clk 0:00:56.5]} 28... Ne4 {[%clk 0:01:33.3]} 29. Qh3
{[%clk 0:00:48.3]} 29... Kh7 {[%clk 0:00:57.3]} 30. f3 {[%clk 0:00:41.6]} 30...
Nd6 {[%clk 0:00:53.9]} 31. Re1 {[%clk 0:00:39]} 31... f6 {[%clk 0:00:50.5]} 32.
Nd3 {[%clk 0:00:39]} 32... Rxe1+ {[%clk 0:00:49.2]} 33. Nxe1 {[%clk 0:00:39.3]}
33... Nc4 {[%clk 0:00:48.6]} 34. Qh2 {[%clk 0:00:29.4]} 34... Qe3 {[%clk
0:00:45.8]} 35. Qc2+ {[%clk 0:00:28.8]} 35... Kg8 {[%clk 0:00:41.5]} 36. Qd1
{[%clk 0:00:17]} 36... Nxb2 {[%clk 0:00:34]} 37. Qb3 {[%clk 0:00:15.3]} 37...
Nc4 {[%clk 0:00:32.2]} 38. Qd1 {[%clk 0:00:15.3]} 38... Qxc3 {[%clk 0:00:30.3]}
39. h5 {[%clk 0:00:14.9]} 39... Qe3 {[%clk 0:00:26.3]} 40. Kg2 {[%clk
0:00:12.8]} 40... Nd2 {[%clk 0:00:21.4]} 41. Qa1 {[%clk 0:00:06.6]} 41... Qe2+
{[%clk 0:00:19]} 42. Kg3 {[%clk 0:00:07.1]} 42... Nc4 {[%clk 0:00:17.9]} 43. Qb1
{[%clk 0:00:06.6]} 43... Ne3 {[%clk 0:00:17.3]} 44. Qg6 {[%clk 0:00:06.4]} 44...
Qxe1+ {[%clk 0:00:15.8]} 45. Kf4 {[%clk 0:00:04.9]} 45... Ng2+ {[%clk
0:00:15.1]} 46. Kf5 {[%clk 0:00:04.7]} 46... Qb1+ {[%clk 0:00:15.3]} 47. Ke6
{[%clk 0:00:05.2]} 47... Qxg6 {[%clk 0:00:15.7]} 48. hxg6 {[%clk 0:00:06.1]}
48... Nh4 {[%clk 0:00:15.4]} 49. a5 {[%clk 0:00:06.6]} 49... Nxf3 {[%clk
0:00:14.8]} 50. Kd7 {[%clk 0:00:07.1]} 50... b5 {[%clk 0:00:14.1]} 51. axb6
{[%clk 0:00:04.1]} 51... axb6 {[%clk 0:00:13.5]} 0-1

[Event "*** Titled Tuesday Blitz"]
[Site "Chess.com"]
[Date "2020.04.28"]
[Round "9"]
[White "mc4chess"]
[Black "Kimster98"]
[Result "1/2-1/2"]
[WhiteElo "2411"]
[BlackElo "2555"]
[TimeControl "180+1"]
[EndTime "11:46:53 PDT"]
[Termination "Game drawn by agreement"]

1. e4 {[%clk 0:02:59.8]} 1... c5 {[%clk 0:02:59.2]} 2. Nf3 {[%clk 0:02:59.6]}
2... e6 {[%clk 0:02:58.7]} 3. d4 {[%clk 0:02:59.3]} 3... cxd4 {[%clk 0:02:59.6]}
4. Nxd4 {[%clk 0:02:59.9]} 4... Nf6 {[%clk 0:03:00.3]} 5. Bd3 {[%clk 0:02:59.9]}
5... Nc6 {[%clk 0:03:00.4]} 6. Nxc6 {[%clk 0:02:57.4]} 6... bxc6 {[%clk
0:03:01.3]} 7. O-O {[%clk 0:02:54.8]} 7... d5 {[%clk 0:03:01.6]} 8. Nc3 {[%clk
0:02:52.7]} 8... Be7 {[%clk 0:02:59.6]} 9. b3 {[%clk 0:02:35.7]} 9... O-O {[%clk
0:02:58]} 10. Bb2 {[%clk 0:02:26]} 10... a5 {[%clk 0:02:40.2]} 11. Qe2 {[%clk
0:02:21.4]} 11... Qb6 {[%clk 0:02:37.4]} 12. Na4 {[%clk 0:02:15.3]} 12... Qa7
{[%clk 0:02:31.2]} 13. Rad1 {[%clk 0:01:52.8]} 13... Ba6 {[%clk 0:02:29.6]} 14.
exd5 {[%clk 0:01:49.9]} 14... cxd5 {[%clk 0:02:25.4]} 15. c4 {[%clk 0:01:43.9]}
15... dxc4 {[%clk 0:02:24.9]} 16. Bxc4 {[%clk 0:01:43.1]} 16... Bxc4 {[%clk
0:02:10.7]} 17. Qxc4 {[%clk 0:01:44]} 17... Rac8 {[%clk 0:02:10.4]} 18. Qd3
{[%clk 0:01:34.2]} 18... Nd5 {[%clk 0:02:06.8]} 19. Qg3 {[%clk 0:01:24.5]} 19...
Bf6 {[%clk 0:02:06.1]} 20. Bxf6 {[%clk 0:01:01.6]} 20... Nxf6 {[%clk 0:02:07]}
21. Rd2 {[%clk 0:01:02.1]} 21... Nd5 {[%clk 0:01:57.3]} 22. Rfd1 {[%clk
0:01:00.7]} 22... Rc6 {[%clk 0:01:55.8]} 23. h3 {[%clk 0:00:58.1]} 23... Rfc8
{[%clk 0:01:53.5]} 24. Qe5 {[%clk 0:00:54]} 24... Qc7 {[%clk 0:01:52.1]} 25. Qd4
{[%clk 0:00:46.9]} 25... h6 {[%clk 0:01:45.9]} 26. Nb2 {[%clk 0:00:44.3]} 26...
Rc1 {[%clk 0:01:38.2]} 27. Nc4 {[%clk 0:00:40.3]} 27... Rxd1+ {[%clk 0:01:37.8]}
28. Rxd1 {[%clk 0:00:41]} 28... a4 {[%clk 0:01:38.3]} 29. Rd3 {[%clk 0:00:35.8]}
29... axb3 {[%clk 0:01:37.2]} 30. axb3 {[%clk 0:00:36.7]} 30... Ra8 {[%clk
0:01:37.5]} 31. Rg3 {[%clk 0:00:35]} 31... f6 {[%clk 0:01:33.9]} 32. Qe4 {[%clk
0:00:31.7]} 32... Re8 {[%clk 0:01:24.8]} 33. Kh2 {[%clk 0:00:29.2]} 33... Qd7
{[%clk 0:00:51.8]} 34. Qg6 {[%clk 0:00:28]} 34... Kh8 {[%clk 0:00:38.1]} 35. Nd6
{[%clk 0:00:23.6]} 35... Rf8 {[%clk 0:00:35.9]} 36. Ne4 {[%clk 0:00:22.9]} 36...
Qf7 {[%clk 0:00:31.4]} 37. Nc5 {[%clk 0:00:19.6]} 37... Qxg6 {[%clk 0:00:30]}
38. Rxg6 {[%clk 0:00:20.5]} 38... Nf4 {[%clk 0:00:22.2]} 39. Rg4 {[%clk
0:00:19.6]} 39... e5 {[%clk 0:00:20.8]} 40. g3 {[%clk 0:00:20.1]} 40... Nd5
{[%clk 0:00:21.2]} 41. Ra4 {[%clk 0:00:19]} 41... Rb8 {[%clk 0:00:20.3]} 42. Ra7
{[%clk 0:00:18.6]} 42... Rb5 {[%clk 0:00:19.5]} 43. Ne6 {[%clk 0:00:18.7]} 43...
g5 {[%clk 0:00:15.1]} 44. Rd7 {[%clk 0:00:14.6]} 44... Nc3 {[%clk 0:00:13.6]}
45. Rf7 {[%clk 0:00:11.1]} 45... Rxb3 {[%clk 0:00:13.3]} 46. Rxf6 {[%clk
0:00:11.1]} 46... Ne4 {[%clk 0:00:13.9]} 47. Rf7 {[%clk 0:00:11.1]} 47... Rb2
{[%clk 0:00:13.9]} 48. Kg2 {[%clk 0:00:11.3]} 48... Kg8 {[%clk 0:00:14]} 49. Rf5
{[%clk 0:00:09.9]} 49... Rb5 {[%clk 0:00:12.7]} 50. Nc7 {[%clk 0:00:09.5]} 50...
Rc5 {[%clk 0:00:12.6]} 51. Ne8 {[%clk 0:00:09.6]} 51... Ra5 {[%clk 0:00:10]} 52.
Nf6+ {[%clk 0:00:09.6]} 52... Nxf6 {[%clk 0:00:10.3]} 53. Rxf6 {[%clk
0:00:10.5]} 53... Kg7 {[%clk 0:00:11.2]} 54. Re6 {[%clk 0:00:10.9]} 54... Rb5
{[%clk 0:00:11.1]} 55. Rd6 {[%clk 0:00:10.9]} 1/2-1/2

[Event "*** Titled Tuesday Blitz"]
[Site "Chess.com"]
[Date "2020.04.28"]
[Round "9"]
[White "doctorcristian"]
[Black "DinaBelenkaya"]
[Result "1-0"]
[WhiteElo "2358"]
[BlackElo "2194"]
[TimeControl "180+1"]
[EndTime "11:46:53 PDT"]
[Termination "doctorcristian won on time"]

1. d4 {[%clk 0:02:50.5]} 1... Nf6 {[%clk 0:02:59.2]} 2. Nc3 {[%clk 0:02:49.6]}
2... d5 {[%clk 0:02:56.4]} 3. Bf4 {[%clk 0:02:49.6]} 3... c5 {[%clk 0:02:44.9]}
4. e3 {[%clk 0:02:48.8]} 4... cxd4 {[%clk 0:01:59.8]} 5. exd4 {[%clk 0:02:46.6]}
5... a6 {[%clk 0:02:00]} 6. h3 {[%clk 0:02:42.8]} 6... Nc6 {[%clk 0:02:00.1]} 7.
Nf3 {[%clk 0:02:41.6]} 7... Bf5 {[%clk 0:01:59.6]} 8. Bd3 {[%clk 0:02:39.2]}
8... Bxd3 {[%clk 0:01:58.9]} 9. Qxd3 {[%clk 0:02:38.5]} 9... e6 {[%clk
0:01:59.5]} 10. a3 {[%clk 0:02:37.7]} 10... Bd6 {[%clk 0:01:59.5]} 11. Ne2
{[%clk 0:02:36.9]} 11... O-O {[%clk 0:01:57.5]} 12. O-O {[%clk 0:02:35.6]} 12...
Rc8 {[%clk 0:01:56]} 13. c3 {[%clk 0:02:31.2]} 13... Bxf4 {[%clk 0:01:54.8]} 14.
Nxf4 {[%clk 0:02:29.9]} 14... Qd6 {[%clk 0:01:55.5]} 15. Qe3 {[%clk 0:02:28.6]}
15... Ne4 {[%clk 0:01:54.4]} 16. Nd3 {[%clk 0:02:28]} 16... Ne7 {[%clk
0:01:47.5]} 17. Nd2 {[%clk 0:02:24]} 17... Nf5 {[%clk 0:01:45.5]} 18. Qe2 {[%clk
0:02:23.1]} 18... Nxd2 {[%clk 0:01:28.6]} 19. Qxd2 {[%clk 0:02:23]} 19... b5
{[%clk 0:01:28.9]} 20. a4 {[%clk 0:02:18.5]} 20... Qb6 {[%clk 0:01:23]} 21. axb5
{[%clk 0:02:17]} 21... axb5 {[%clk 0:01:22.5]} 22. b4 {[%clk 0:02:16.3]} 22...
Nd6 {[%clk 0:01:02.8]} 23. Nc5 {[%clk 0:02:14.3]} 23... Ne4 {[%clk 0:00:29.4]}
24. Qb2 {[%clk 0:02:02.9]} 24... Qc7 {[%clk 0:00:25.3]} 25. f3 {[%clk
0:01:54.3]} 25... Ng3 {[%clk 0:00:23.5]} 26. Rfe1 {[%clk 0:01:53.2]} 26... Ra8
{[%clk 0:00:23.8]} 27. Kf2 {[%clk 0:01:51.2]} 27... Nf5 {[%clk 0:00:23.3]} 28.
Kg1 {[%clk 0:01:46.5]} 28... Qg3 {[%clk 0:00:22.8]} 29. Qf2 {[%clk 0:01:44.6]}
29... Qg5 {[%clk 0:00:22]} 30. f4 {[%clk 0:01:33.6]} 30... Qg6 {[%clk
0:00:20.9]} 31. Kh2 {[%clk 0:01:30.8]} 31... h5 {[%clk 0:00:20.3]} 32. g3 {[%clk
0:01:27.2]} 32... Nd6 {[%clk 0:00:20.1]} 33. Qe2 {[%clk 0:01:04.2]} 33... h4
{[%clk 0:00:18.3]} 34. g4 {[%clk 0:01:02.8]} 34... Qf6 {[%clk 0:00:17.4]} 35.
Qe5 {[%clk 0:01:00.7]} 35... Qe7 {[%clk 0:00:10.4]} 36. Rxa8 {[%clk 0:00:45.5]}
36... Rxa8 {[%clk 0:00:11.3]} 37. Qxd5 {[%clk 0:00:44.9]} 37... exd5 {[%clk
0:00:11.7]} 38. Rxe7 {[%clk 0:00:43.1]} 38... Ra2+ {[%clk 0:00:11.3]} 39. Kg1
{[%clk 0:00:42.7]} 39... Rc2 {[%clk 0:00:05.6]} 40. Rd7 {[%clk 0:00:40.6]} 40...
Nc4 {[%clk 0:00:02.6]} 41. Rxd5 {[%clk 0:00:39.1]} 41... Rxc3 {[%clk 0:00:03.3]}
42. Rd8+ {[%clk 0:00:36.4]} 42... Kh7 {[%clk 0:00:02.9]} 43. Ne4 {[%clk
0:00:35]} 43... Rxh3 {[%clk 0:00:02.7]} 44. Ng5+ {[%clk 0:00:34]} 44... Kg6
{[%clk 0:00:02.9]} 45. Nxh3 {[%clk 0:00:32.7]} 45... f6 {[%clk 0:00:03]} 46. d5
{[%clk 0:00:31.3]} 46... Ne3 {[%clk 0:00:03.1]} 47. d6 {[%clk 0:00:29.5]} 1-0